bitfinex/quotes_SOLUSD_20260228
["timestamp","ask_amount","ask_price","bid_price","bid_amount"]
[1772318538472,0.91182045,85.091,85.021,0.09317416]
[1772318538793,3.69383402,85.089,85.019,11.76207671]
[1772318538994,0.91182045,85.088,85.019,11.76207671]
[1772318539495,0.91182045,85.088,85.011,11.85624974]
[1772318539697,0.91182045,85.088,85.012,0.09298465]
[1772318539899,0.91182045,85.088,85.011,11.76307558]
[1772318539900,0.91182045,85.088,85.021,0.09279733]
[1772318540290,0.91182045,85.086,85.021,0.09279733]
[1772318541288,0.91182045,85.086,85.01,11.85593105]
[1772318541592,0.91182045,85.086,85.01,11.7633189]
[1772318542186,0.91182045,85.075,84.993,11.85810393]
[1772318542386,0.91182045,85.073,84.982,0.09242911]
[1772318542585,0.91182045,85.073,84.984,3.69383402]
[1772318543191,0.91182045,85.07,84.984,3.69383402]
[1772318543498,0.91182045,85.065,84.985,11.76678237]
[1772318544002,0.91182045,85.065,84.985,41.1837383]
[1772318545105,0.91182045,85.065,84.985,41.27563079]
[1772318545406,0.91182045,85.065,84.986,0.09189249]
[1772318545606,0.91182045,85.063,84.986,0.09189249]
[1772318546806,0.91182045,85.061,84.986,0.09189249]
[1772318548004,0.91182045,85.059,84.986,0.09189249]
[1772318548590,0.91182045,85.056,84.986,0.09189249]
[1772318549092,0.91182045,85.056,84.979,11.76761317]
[1772318549291,0.91182045,85.056,84.973,11.76831529]
[1772318550099,0.91182045,85.051,84.968,0.09120532]
[1772318550490,0.91182045,85.051,84.961,11.77010628]
[1772318550897,0.91182045,85.034,84.949,11.77176894]
[1772318551420,0.91182045,85.029,84.921,0.09087346]
[1772318551717,0.91182045,85.022,84.927,0.09087346]
[1772318552014,0.91182045,85.006,84.927,0.09087346]
[1772318553413,0.91182045,85.006,84.941,0.09054918]
[1772318553620,0.91182045,85.006,84.951,0.09054918]
[1772318553921,3.25699996,85.029,84.981,0.86319249]
[1772318554215,41.13823621,85.079,85.0,7.97364977]
[1772318554518,41.13823621,85.079,85.011,0.86319249]
[1772318554824,11.75378177,85.079,85.011,0.86319249]
[1772318555319,11.75378177,85.079,85.021,0.86319249]
[1772318555495,41.13823621,85.079,85.014,0.86319249]
[1772318555694,0.89010354,85.075,85.004,0.86319249]
[1772318555896,5.36086188,85.074,85.004,0.86319249]
[1772318556114,0.89010354,85.071,84.996,11.7652427]
[1772318556296,41.1416212,85.072,84.992,11.76581325]
[1772318556297,0.89010354,85.068,84.992,11.76581325]
[1772318558095,3.69383402,85.064,84.992,11.76581325]
[1772318558301,0.89010354,85.063,84.992,11.76581325]
[1772318560218,0.89010354,85.063,84.993,0.86319249]
[1772318560815,0.89010354,85.058,84.995,0.86319249]
[1772318561997,0.89010354,85.056,84.997,0.86319249]
[1772318564517,0.89010354,85.054,84.999,0.86319249]
[1772318567512,0.88282714,85.052,84.999,0.86319249]
[1772318567716,0.88282714,85.049,84.962,0.92949966]
[1772318569018,0.88282714,85.049,84.961,11.77010628]
[1772318569019,0.88282714,85.044,84.964,0.92949966]
[1772318571630,0.88282714,85.039,84.966,0.92949966]
[1772318572139,0.88282714,85.039,84.965,41.19343258]
[1772318572140,0.88282714,85.039,84.971,0.92949966]
[1772318572418,0.88282714,85.039,84.981,0.92949966]
[1772318573628,41.15565066,85.043,84.983,0.92949966]
[1772318573629,0.88282714,85.037,84.983,0.92949966]
[1772318575624,41.15903852,85.036,84.983,0.92949966]
[1772318575920,0.88282714,85.035,84.983,0.92949966]
[1772318576322,0.88282714,85.032,84.974,0.92949966]
[1772318576721,0.88282714,85.032,84.976,0.92949966]
[1772318577926,0.88282714,85.03,84.978,0.92949966]
[1772318579923,0.88282714,85.028,84.979,11.76761317]
[1772318580132,0.88282714,85.028,84.98,0.92949966]
[1772318581635,0.88282714,85.028,84.948,3.69383402]
[1772318581636,0.92066005,85.025,84.95,19.74528014]
[1772318581933,0.92066005,85.023,84.95,49.17435606]
[1772318582811,0.92066005,85.02,84.938,11.77319132]
[1772318583223,0.92066005,85.02,84.923,3.69383402]
[1772318583414,0.92066005,85.013,84.92,8.17364977]
[1772318583631,0.92066005,85.013,84.921,0.04266179]
[1772318583831,0.92066005,85.013,84.922,0.04173832]
[1772318584134,0.92066005,85.008,84.922,0.04173832]
[1772318586117,0.92066005,85.002,84.922,0.04173832]
[1772318588320,0.92066005,84.997,84.922,0.04173832]
[1772318590248,0.92066005,84.992,84.922,0.04173832]
[1772318590435,0.92066005,84.992,84.868,58.63303878]
[1772318590436,0.92066005,84.985,84.9,0.03259819]
[1772318590749,0.92066005,84.975,84.889,0.03259819]
[1772318590932,0.92066005,84.973,84.889,0.03259819]
[1772318591237,5.36086188,84.971,84.87,8.17364977]
[1772318591439,0.92066005,84.965,84.871,0.03081925]
[1772318591940,0.92066005,84.96,84.872,0.02906074]
[1772318592331,0.92066005,84.96,84.881,0.02906074]
[1772318592642,0.92066005,84.96,84.891,0.02906075]
[1772318592818,0.92066005,84.96,84.901,0.02906074]
[1772318593024,0.92066005,84.96,84.911,0.02732243]
[1772318593925,0.92066005,84.958,84.911,0.02732243]
[1772318596037,0.92066005,84.956,84.911,0.02732243]
[1772318596542,0.92066005,84.956,84.902,0.02056657]
[1772318597339,0.92066005,84.956,84.898,11.7787741]
[1772318598240,0.92066005,84.954,84.891,1e-08]
[1772318599748,0.92066005,84.951,84.891,1e-08]
[1772318600331,0.92066005,84.946,84.891,1e-08]
[1772318602345,0.92066005,84.944,84.891,1e-08]
[1772318603448,11.77158725,84.951,84.893,3.69383402]
[1772318603647,0.92066005,84.956,84.91,7.99595209]
[1772318603848,0.92066005,84.965,84.91,7.99595209]
[1772318604449,0.92066005,84.965,84.911,41.21962996]
[1772318604751,0.92066005,84.965,84.92,7.99595209]
[1772318605549,0.92066005,84.964,84.92,7.99595209]
[1772318605747,0.92066005,84.964,84.923,3.69383402]
[1772318606054,3.3440001,84.967,84.923,3.69383402]
[1772318606253,0.92066005,84.966,84.923,3.69383402]
[1772318606939,0.92066005,84.966,84.924,41.21332013]
[1772318607356,3.3440001,84.967,84.925,6.82269458]
[1772318607552,58.66733793,85.038,84.925,6.82269458]
[1772318607553,0.92066005,84.993,84.94,7.99595209]
[1772318607853,0.92066005,84.993,84.95,7.99595209]
[1772318608956,0.92066005,85.003,84.954,3.69383402]
[1772318609737,11.76299561,85.013,84.96,7.99595209]
[1772318609958,0.92066005,85.012,84.96,7.99595209]
[1772318610850,0.92066005,85.011,84.961,41.19537199]
[1772318611240,0.92066005,85.009,84.97,7.99595209]
[1772318611446,0.92066005,85.03,84.97,7.99595209]
[1772318611641,0.92066005,85.03,84.961,41.19537199]
[1772318611642,0.92066005,85.03,84.98,7.99595209]
[1772318612460,41.16145875,85.031,84.962,0.28432314]
[1772318612461,11.76041678,85.031,84.99,7.99595209]
[1772318612644,0.92066005,85.038,85.0,7.99595209]
[1772318612853,7.39814734,85.055,84.978,3.69383402]
[1772318612854,0.92066005,85.054,85.01,7.99595209]
[1772318613048,0.92066005,85.053,85.011,11.76318358]
[1772318613741,7.39814734,85.055,85.02,7.99595209]
[1772318613955,11.75636978,85.061,85.03,7.99595209]
[1772318614639,11.75556557,85.067,85.03,7.99595209]
[1772318614852,0.92066005,85.07,85.03,7.99595209]
[1772318615069,0.92066005,85.068,85.031,11.76041678]
[1772318617174,3.69383402,85.114,85.031,11.76041678]
[1772318617175,0.92066005,85.088,85.06,7.99595209]
[1772318618666,0.92066005,85.088,85.05,7.99595209]
[1772318618667,0.92066005,85.087,85.05,7.99595209]
[1772318618870,0.92066005,85.087,85.06,7.99595209]
[1772318619880,11.75281479,85.086,85.031,11.76041678]
[1772318620041,0.92066005,85.085,85.05,7.99595209]
[1772318621367,0.92066005,85.083,85.05,7.99595209]
[1772318622272,11.75005287,85.106,85.07,7.99595209]
[1772318622456,0.92066005,85.105,85.07,7.99595209]
[1772318623455,0.92066005,85.103,85.07,7.99595209]
[1772318623977,0.92066005,85.103,85.036,29.39905356]
[1772318624154,0.92066005,85.103,85.06,7.99595209]
[1772318624688,0.92066005,85.103,85.07,7.99595209]
[1772318625353,0.92066005,85.101,85.07,7.99595209]
[1772318627852,0.92066005,85.099,85.07,7.99595209]
[1772318629263,0.92066005,85.099,85.048,1.1758066]
[1772318629460,0.92066005,85.099,85.06,7.99595209]
[1772318629867,0.92066005,85.097,85.05,7.99595209]
[1772318630968,0.92066005,85.097,85.04,7.99595209]
[1772318631360,0.92066005,85.094,85.04,7.99595209]
[1772318631877,0.92066005,85.089,85.04,7.99595209]
[1772318632197,0.92066005,85.089,85.05,7.99595209]
[1772318632360,0.92066005,85.089,85.04,7.99595209]
[1772318632952,0.92066005,85.089,85.05,7.99595209]
[1772318634069,0.92066005,85.087,85.03,7.99595209]
[1772318636161,3.69383402,85.104,85.02,7.99595209]
[1772318636162,0.92066005,85.085,85.02,7.99595209]
[1772318636568,0.92066005,85.085,85.03,7.99595209]
[1772318637476,0.92066005,85.085,85.009,11.76346033]
[1772318637477,0.92066005,85.083,85.05,7.99595209]
[1772318637782,0.92066005,85.088,85.05,7.99595209]
[1772318638080,0.92066005,85.088,85.04,7.99595209]
[1772318638673,0.92066005,85.088,85.05,7.99595209]
[1772318638875,0.92066005,85.088,85.031,42.33750042]
[1772318638876,0.92066005,85.088,85.04,7.99595209]
[1772318639469,0.92066005,85.086,85.041,11.75903387]
[1772318640183,0.92066005,85.086,85.05,7.99595209]
[1772318640865,0.92066005,85.086,85.04,7.99595209]
[1772318641480,0.92066005,85.084,85.041,11.75903387]
[1772318641665,0.92066005,85.084,85.05,7.99595209]
[1772318641871,5.36086188,85.121,85.041,11.75903387]
[1772318641872,12.67301507,85.09,85.07,7.99595209]
[1772318642177,0.92066005,85.089,85.06,7.99595209]
[1772318643666,12.67319859,85.088,85.05,7.99595209]
[1772318643866,42.05454496,85.088,85.05,7.99595209]
[1772318644087,12.67319859,85.088,85.06,7.99595209]
[1772318644669,0.92066005,85.087,85.06,7.99595209]
[1772318645182,11.75281479,85.086,85.06,7.99595209]
[1772318646085,0.92066005,85.085,85.043,11.75875733]
[1772318646268,0.92066005,85.085,85.05,7.99595209]
[1772318647167,12.67375111,85.084,85.05,7.99595209]
[1772318647382,12.67375111,85.084,85.06,7.99595209]
[1772318647889,11.75309106,85.084,85.051,11.75765129]
[1772318648569,0.92066005,85.118,85.07,7.99595209]
[1772318648772,0.92066005,85.117,85.08,7.99595209]
[1772318649285,0.92066005,85.115,85.081,11.75350548]
[1772318649483,0.1,85.13,85.09,7.99595209]
[1772318649484,0.92066005,85.124,85.09,7.99595209]
[1772318649788,0.92066005,85.124,85.1,7.99595209]
[1772318650173,0.1,85.13,85.1,7.99595209]
[1772318650379,0.92066005,85.129,85.1,7.99595209]
[1772318650570,0.92066005,85.128,85.1,7.99595209]
[1772318650888,0.1,85.13,85.11,7.99595209]
[1772318651583,0.92066005,85.136,85.111,11.74936259]
[1772318652093,11.7444184,85.147,85.12,7.99595209]
[1772318652294,0.92066005,85.163,85.13,7.99595209]
[1772318652477,0.92066005,85.156,85.12,7.99595209]
[1772318653479,0.92066005,85.154,85.11,7.99595209]
[1772318653898,0.92066005,85.154,85.1,7.99595209]
[1772318655478,0.92066005,85.152,85.1,7.99595209]
[1772318655776,0.92066005,85.149,85.09,7.99595209]
[1772318656206,0.92066005,85.149,85.08,7.99595209]
[1772318657492,0.92066005,85.149,85.08,7.96016923]
[1772318657673,0.92066005,85.144,85.08,7.96016923]
[1772318657873,5.36086188,85.143,85.08,7.96016923]
[1772318658075,0.92066005,85.139,85.08,7.96016923]
[1772318659793,0.92066005,85.137,85.09,7.96016923]
[1772318660205,0.92066005,85.137,85.081,41.13726918]
[1772318660206,0.92066005,85.137,85.1,7.96016923]
[1772318660409,11.74563649,85.138,85.11,7.96016923]
[1772318660786,0.92066005,85.137,85.1,7.96016923]
[1772318661209,0.92066005,85.137,85.09,7.96016923]
[1772318661393,3.69383402,85.135,85.08,7.96016923]
[1772318661709,0.92066005,85.132,85.08,7.96016923]
[1772318662288,0.92066005,85.132,85.09,7.96016923]
[1772318662501,41.11214217,85.133,85.11,7.96016923]
[1772318662502,11.74632633,85.133,85.11,7.96016923]
[1772318662914,11.74632633,85.133,85.09,7.96016923]
[1772318663486,0.92066005,85.138,85.091,11.75212419]
[1772318665788,0.92066005,85.136,85.084,11.75309106]
[1772318666905,0.92066005,85.134,85.084,11.75309106]
[1772318669006,0.92066005,85.151,85.093,3.69383402]
[1772318669210,0.92066005,85.151,85.09,7.96016923]
[1772318670790,0.92066005,85.151,85.084,11.75309106]
[1772318670994,0.92066005,85.149,85.084,11.75309106]
[1772318671703,41.10393422,85.15,85.075,11.75422458]
[1772318671704,0.92066005,85.146,85.075,11.75422458]
[1772318671896,0.92066005,85.146,85.076,1.17541962]
[1772318672098,0.92066005,85.146,85.08,7.96016923]
[1772318672298,0.92066005,85.146,85.076,1.17541962]
[1772318673015,0.92066005,85.144,85.077,11.75405808]
[1772318674090,0.92066005,85.142,85.071,11.75488709]
[1772318676209,0.92066005,85.14,85.071,11.75488709]
[1772318677399,0.92066005,85.14,85.071,41.14210482]
[1772318677914,0.92066005,85.126,85.037,14.5812993]
[1772318678207,0.92066005,85.126,84.988,18.92707117]
[1772318678208,3.69383402,85.083,84.991,11.76595168]
[1772318678411,0.92066005,85.074,84.991,11.76595168]
[1772318679203,0.92066005,85.073,84.991,11.76595168]
[1772318679403,0.92066005,85.07,84.99,0.2]
[1772318680214,0.92066005,85.065,84.99,0.2]
[1772318680397,0.92066005,85.065,84.991,11.76595168]
[1772318682812,0.92066005,85.063,84.991,11.76595168]
[1772318683003,0.92066005,85.06,84.991,11.76595168]
[1772318683205,0.92066005,85.06,84.99,0.2]
[1772318685114,3.69383402,85.056,84.99,0.2]
[1772318685619,3.69383402,85.052,84.99,0.2]
[1772318685821,5.36086188,85.046,84.961,11.77010628]
[1772318686001,3.69383402,85.042,84.961,11.77010628]
[1772318686407,3.69383402,85.042,84.96,0.2]
[1772318686619,103.2,85.045,84.96,0.2]
[1772318686620,3.69383402,85.034,84.96,0.2]
[1772318687106,3.69383402,85.03,84.96,0.2]
[1772318687308,0.92066005,85.029,84.96,0.2]
[1772318687710,0.92066005,85.029,84.961,11.77010628]
[1772318687913,0.92066005,85.029,84.96,0.2]
[1772318688425,0.92066005,85.029,84.96,29.6253899]
[1772318689018,0.92066005,85.024,84.961,11.77010628]
[1772318690022,0.92066005,85.024,84.965,0.28432314]
[1772318690214,0.92066005,85.024,84.97,7.96016923]
[1772318690425,11.76083172,85.028,84.98,7.96016923]
[1772318690927,11.76083172,85.028,84.983,3.69383402]
[1772318691117,0.92066005,85.032,84.984,11.76692083]
[1772318691433,0.92066005,85.032,84.984,41.18422291]
[1772318692340,0.92066005,85.03,84.984,11.76692083]
[1772318692632,0.92066005,85.028,84.977,11.76780753]
[1772318692831,0.92066005,85.026,84.974,11.76830559]
[1772318693140,0.92066005,85.022,84.961,11.77010628]
[1772318693427,0.92066005,85.02,84.96,0.2]
[1772318693611,0.92066005,85.018,84.96,0.2]
[1772318693920,0.92066005,85.016,84.96,0.2]
[1772318694103,41.16533173,85.023,84.96,0.2]
[1772318694104,0.92066005,85.014,84.96,0.2]
[1772318694309,0.92066005,85.012,84.96,0.2]
[1772318694515,0.92066005,85.01,84.96,11.97015943]
[1772318694702,0.92066005,85.008,84.96,0.2]
[1772318694907,0.92066005,85.006,84.96,0.2]
[1772318695222,0.92066005,85.004,84.96,0.2]
[1772318695424,1.1756269,85.003,84.96,0.2]
[1772318695617,0.92066005,85.002,84.96,0.2]
[1772318696325,0.92066005,85.0,84.96,0.2]
[1772318696531,0.92066005,85.0,84.961,11.77010628]
[1772318697030,0.92066005,84.999,84.961,11.77010628]
[1772318697429,0.92066005,84.999,84.96,0.2]
[1772318697627,0.92066005,84.999,84.96,11.97016088]
[1772318698834,11.7649827,84.998,84.96,11.97016088]
[1772318699013,0.92066005,84.997,84.96,11.97016088]
[1772318699416,0.92066005,84.997,84.96,0.2]
[1772318699616,0.92066005,84.997,84.961,11.77010628]
[1772318700631,0.92066005,84.996,84.96,0.2]
[1772318701034,0.92066005,84.994,84.96,0.2]
[1772318701533,0.92066005,84.993,84.96,0.2]
[1772318701736,0.92066005,84.991,84.96,0.2]
[1772318703034,0.92066005,84.989,84.96,0.2]
[1772318704043,0.92066005,84.988,84.96,0.2]
[1772318704942,1.1756269,84.987,84.93,7.96016923]
[1772318705130,0.92066005,84.985,84.934,11.77384792]
[1772318705533,41.1832537,84.986,84.903,6.1022147]
[1772318705534,0.92066005,84.982,84.903,6.1022147]
[1772318705730,0.92066005,84.975,84.903,6.1022147]
[1772318705949,9.0546959,84.962,84.903,1e-08]
[1772318706125,0.92066005,84.942,84.87,0.2]
[1772318707132,0.92066005,84.937,84.87,0.2]
[1772318709133,0.92066005,84.932,84.87,0.2]
[1772318710849,0.92066005,84.925,84.86,0.2]
[1772318711134,0.92066005,84.92,84.85,0.2]
[1772318711732,5.36086188,84.917,84.85,0.2]
[1772318711937,0.92066005,84.901,84.85,0.2]
[1772318713138,0.92066005,84.896,84.85,0.2]
[1772318715249,0.92066005,84.894,84.85,0.2]
[1772318715454,0.92066005,84.894,84.851,11.78536493]
[1772318716736,11.77953423,84.893,84.851,41.24877726]
[1772318716941,12.70015142,84.894,84.851,41.24877726]
[1772318717238,0.92066005,84.893,84.851,41.24877726]
[1772318717466,11.77864699,84.9,84.851,41.24877726]
[1772318718054,12.69930704,84.9,84.851,41.24877726]
[1772318718943,12.69839071,84.906,84.851,41.24877726]
[1772318719146,0.92066005,84.904,84.851,41.24877726]
[1772318719755,0.92066005,84.902,84.851,41.24877726]
[1772318720940,11.77842428,84.901,84.851,41.24877726]
[1772318721455,0.92066005,84.9,84.851,41.24877726]
[1772318722356,11.77870175,84.899,84.851,41.24877726]
[1772318722660,12.6993618,84.899,84.851,41.24877726]
[1772318723548,0.92066005,84.905,84.852,0.28432314]
[1772318723965,0.92066005,84.905,84.852,1.46284574]
[1772318724961,0.92066005,84.926,84.854,3.69383402]
[1772318725159,0.92066005,84.924,84.854,3.69383402]
[1772318725353,0.92066005,84.922,84.854,3.69383402]
[1772318725543,41.20992334,84.931,84.854,3.69383402]
[1772318725544,0.92066005,84.92,84.854,3.69383402]
[1772318725744,0.92066005,84.917,84.855,41.24683283]
[1772318725945,0.92066005,84.916,84.856,1.17846705]
[1772318726252,0.92066005,84.914,84.856,1.17846705]
[1772318726442,0.92066005,84.912,84.856,1.17846705]
[1772318727853,0.92066005,84.91,84.857,11.78453162]
[1772318728365,1.1756269,84.909,84.857,11.78453162]
[1772318728562,0.92066005,84.908,84.857,11.78453162]
[1772318728950,0.92066005,84.908,84.857,41.24586067]
[1772318729557,0.92066005,84.907,84.857,41.24586067]
[1772318729759,0.92066005,84.905,84.85,0.2]
[1772318729946,0.92066005,84.903,84.85,0.2]
[1772318730146,0.92066005,84.901,84.85,0.2]
[1772318730449,0.84340972,84.897,84.801,10.6677154]
[1772318730648,0.84340972,84.894,84.803,0.10606337]
[1772318730867,0.84340972,84.892,84.803,0.10606337]
[1772318731058,3.69383402,84.895,84.803,0.10606337]
[1772318731059,0.84340972,84.89,84.803,0.10606337]
[1772318731267,0.84340972,84.888,84.803,0.10606337]
[1772318731567,28.0991069,84.902,84.803,0.10606337]
[1772318731568,0.84340972,84.886,84.805,0.10573781]
[1772318731954,0.84340972,84.881,84.805,0.10573781]
[1772318733451,0.84340972,84.88,84.805,0.10573781]
[1772318733851,0.84340972,84.875,84.805,0.10573781]
[1772318734246,0.84340972,84.875,84.802,11.79217471]
[1772318734655,0.84340972,84.875,84.803,0.10478337]
[1772318735356,0.84340972,84.865,84.8,0.2]
[1772318735767,0.84340972,84.865,84.805,0.10447251]
[1772318735971,0.84340972,84.863,84.806,0.10446881]
[1772318736668,0.84340972,84.863,84.8,0.30446881]
[1772318736971,0.84340972,84.863,84.801,11.89677892]
[1772318737171,0.84340972,84.863,84.802,0.10446516]
[1772318737952,0.84340972,84.861,84.814,0.10446154]
[1772318738356,0.84340972,84.861,84.813,3.69383402]
[1772318738357,0.84340972,84.861,84.821,0.10446154]
[1772318739065,6.15835013,84.913,84.822,0.38878111]
[1772318739066,0.84340972,84.871,84.822,0.38878111]
[1772318739267,0.84340972,84.887,84.841,0.10445797]
[1772318739854,0.84340972,84.885,84.818,0.10445444]
[1772318740060,0.84340972,84.883,84.81,19.80501896]
[1772318740273,0.84340972,84.88,84.81,8.01406627]
[1772318740463,0.84340972,84.878,84.81,8.01406627]
[1772318740663,0.84340972,84.876,84.81,8.01406627]
[1772318740873,0.84340972,84.874,84.81,8.01406627]
[1772318741075,0.84340972,84.872,84.81,8.01406627]
[1772318741256,0.84340972,84.87,84.811,0.10445095]
[1772318741571,0.84340972,84.868,84.811,0.10445095]
[1772318741775,0.84340972,84.866,84.811,0.10445095]
[1772318741969,0.84340972,84.864,84.811,11.89537429]
[1772318742268,0.84340972,84.862,84.82,8.11851377]
[1772318742468,0.84340972,84.862,84.821,0.1044475]
[1772318743161,0.84340972,84.862,84.83,8.11851036]
[1772318743771,0.84340972,84.862,84.831,0.10444409]
[1772318744080,12.62738586,84.861,84.822,0.10444071]
[1772318744377,0.84340972,84.86,84.822,0.10444071]
[1772318744978,1.1756269,84.874,84.84,8.01406627]
[1772318745160,47.05561082,85.006,84.84,8.01406627]
[1772318745161,0.84340972,84.873,84.841,0.10443738]
[1772318745574,0.84340972,84.873,84.824,0.10443409]
[1772318745784,0.86165904,84.871,84.831,0.10443409]
[1772318745981,0.86165904,84.871,84.821,41.26336638]
[1772318745982,0.86165904,84.889,84.851,0.10443083]
[1772318746290,0.86165904,84.889,84.852,0.10443083]
[1772318746459,0.82857402,84.897,84.861,0.10442761]
[1772318746795,58.87633502,84.924,84.851,41.24877726]
[1772318746796,0.82857402,84.906,84.87,8.01406627]
[1772318747082,0.82857402,84.906,84.871,0.10442443]
[1772318748277,0.82857402,84.906,84.872,0.10442128]
[1772318748475,11.77675974,84.913,84.872,0.10442128]
[1772318748775,12.60526277,84.914,84.872,0.10442128]
[1772318748980,0.82857402,84.913,84.872,0.10442128]
[1772318749681,0.82857402,84.91,84.86,0.10441817]
[1772318749971,0.82857402,84.908,84.871,0.1044151]
[1772318750177,0.82857402,84.908,84.872,0.1044151]
[1772318750376,11.77650154,84.915,84.872,0.1044151]
[1772318750861,0.82857402,84.916,84.872,0.1044151]
[1772318751261,12.60497682,84.916,84.872,0.1044151]
[1772318751461,11.7764028,84.916,84.872,0.1044151]
[1772318752575,0.82857402,84.923,84.872,0.1044151]
[1772318752773,0.82857402,84.921,84.872,0.1044151]
[1772318752957,0.82857402,84.919,84.881,0.10440608]
[1772318753157,58.84959192,84.963,84.891,0.10440608]
[1772318753158,0.82857402,84.927,84.891,0.10440608]
[1772318753369,0.82857402,84.935,84.9,8.11847235]
[1772318753973,0.82857402,84.935,84.883,0.10440315]
[1772318754181,0.82857402,84.933,84.883,0.10440315]
[1772318754379,0.82857402,84.931,84.883,0.10440315]
[1772318754572,0.82857402,84.929,84.883,0.10440315]
[1772318754784,0.82857402,84.927,84.883,0.10440315]
[1772318754974,0.82857402,84.925,84.883,0.10440315]
[1772318755164,0.82857402,84.923,84.883,0.10440315]
[1772318755370,41.21137904,84.928,84.876,11.78187937]
[1772318755371,0.82857402,84.921,84.876,11.78187937]
[1772318755577,0.82857402,84.919,84.876,11.78187937]
[1772318755795,0.82857402,84.917,84.876,11.78187937]
[1772318755969,0.82857402,84.915,84.871,11.78251301]
[1772318756169,0.82857402,84.913,84.865,0.10439738]
[1772318756369,0.82857402,84.911,84.865,0.10439738]
[1772318756574,0.82857402,84.909,84.865,0.10439738]
[1772318756882,0.82857402,84.907,84.861,11.78397614]
[1772318757064,0.82857402,84.905,84.862,0.10439454]
[1772318757364,0.82857402,84.903,84.862,0.10439454]
[1772318759466,0.82857402,84.917,84.862,0.10439454]
[1772318759666,0.82857402,84.916,84.871,0.10438897]
[1772318759961,0.82857402,84.934,84.883,0.10438623]
[1772318760176,0.82857402,84.945,84.901,0.10438623]
[1772318760373,0.82857402,84.954,84.901,0.10438623]
[1772318760679,0.82857402,84.954,84.902,0.10438623]
[1772318760884,0.82857402,84.952,84.905,0.10438623]
[1772318762682,0.82857402,84.95,84.905,0.10438623]
[1772318763684,0.82857402,84.95,84.91,7.99386851]
[1772318765189,0.82857402,84.95,84.911,11.77703713]
[1772318765396,0.82857402,84.95,84.912,0.104373]
[1772318765694,0.82857402,84.95,84.92,8.09824151]
[1772318765874,0.82857402,84.95,84.912,1.17768984]
[1772318766871,0.82857402,84.95,84.913,41.21865909]
[1772318767695,0.82857402,84.95,84.914,0.10436792]
[1772318767872,0.82857402,84.95,84.92,7.99386851]
[1772318768380,0.82857402,84.95,84.921,0.10436542]
[1772318768777,0.82857402,84.95,84.92,7.99386851]
[1772318769181,0.82857402,84.95,84.921,11.77565031]
[1772318769383,0.82857402,84.95,84.897,3.69383402]
[1772318769384,0.87284153,84.945,84.87,7.99386851]
[1772318769581,3.69383402,84.926,84.86,7.99386851]
[1772318769882,3.69383402,84.926,84.81,1.17910623]
[1772318769883,0.87284153,84.924,84.87,7.99386851]
[1772318770081,13.19513411,84.936,84.87,7.99386851]
[1772318770082,0.87284153,84.922,84.87,7.99386851]
[1772318771000,0.87284153,84.922,84.841,1.1786754]
[1772318771176,0.87284153,84.92,84.85,7.99386851]
[1772318771494,0.87284153,84.92,84.86,7.99386851]
[1772318771683,0.87284153,84.92,84.87,7.99386851]
[1772318772072,11.77440244,84.93,84.89,7.99386851]
[1772318772490,12.64724397,84.93,84.89,7.99386851]
[1772318772699,11.77440244,84.93,84.89,7.99386851]
[1772318772890,0.87284153,84.929,84.9,7.99386851]
[1772318773089,0.87284153,84.929,84.89,7.99386851]
[1772318773391,0.87284153,84.95,84.91,7.99386851]
[1772318773576,0.87284153,84.948,84.91,7.99386851]
[1772318773777,0.87284153,84.946,84.91,7.99386851]
[1772318774174,0.87284153,84.944,84.91,7.99386851]
[1772318774375,11.7714918,84.951,84.92,7.99386851]
[1772318774582,11.77087618,84.956,84.92,7.99386851]
[1772318774808,0.87284153,84.96,84.93,7.99386851]
[1772318775071,0.87284153,84.969,84.94,7.99386851]
[1772318775285,0.87284153,84.976,84.941,11.77287764]
[1772318775494,0.87284153,84.987,84.96,7.99386851]
[1772318775999,11.76510706,84.998,84.96,7.99386851]
[1772318776201,0.87284153,84.999,84.97,7.99386851]
[1772318776396,0.2,85.0,84.97,7.99386851]
[1772318776891,0.2,85.0,84.98,7.99386851]
[1772318777275,0.87284153,85.008,84.99,7.99386851]
[1772318777489,0.87284153,85.017,84.99,7.99386851]
[1772318777898,12.63519494,85.017,84.99,7.99386851]
[1772318778087,11.76235341,85.017,84.99,7.99386851]
[1772318778287,13.80995812,85.024,85.0,7.99386851]
[1772318778491,0.87284153,85.023,85.0,7.99386851]
[1772318779286,0.87284153,85.023,85.0,7.97608644]
[1772318779803,0.87284153,85.034,85.01,7.97608644]
[1772318780300,0.87284153,85.032,84.97,7.97608644]
[1772318780599,0.87284153,85.03,84.97,7.97608644]
[1772318780785,0.87284153,85.028,84.98,7.97608644]
[1772318780992,1.1756269,85.029,84.98,7.97608644]
[1772318780993,0.87284153,85.026,84.98,7.97608644]
[1772318781191,0.87284153,85.024,84.97,7.97608644]
[1772318781394,0.87284153,85.021,84.97,7.97608644]
[1772318781595,0.87284153,85.019,84.97,7.97608644]
[1772318781812,0.87284153,85.017,84.97,7.97608644]
[1772318782103,0.87284153,85.015,84.97,7.97608644]
[1772318782293,0.87284153,85.013,84.96,7.97608644]